bitfinex/quotes_SOLUSD_20240729
["timestamp","ask_amount","ask_price","bid_price","bid_amount"]
[1722261239463,5.215,191.76,191.66,0.34]
[1722261239793,26.16,191.82,191.67,5.2172]
[1722261239960,28.26924033,191.82,191.68,0.34]
[1722261240161,15.68,191.81,191.68,0.17]
[1722261240378,5.2155,191.74,191.66,0.17]
[1722261240674,5.2157,191.73,191.66,1.04319828]
[1722261241064,5.2157,191.73,191.65,1.1262212]
[1722261241065,6.6506,191.74,191.65,0.7862212]
[1722261241392,5.2153,191.75,191.66,15.6655]
[1722261241592,5.2148,191.76,191.66,16.70886526]
[1722261241795,39.1939,191.81,191.66,20.883]
[1722261241796,5.2151,191.75,191.66,20.883]
[1722261241977,5.2151,191.75,191.66,15.6655]
[1722261242175,5.2156,191.73,191.67,1.04317339]
[1722261242403,5.2156,191.73,191.66,16.0055]
[1722261242580,5.2156,191.73,191.67,0.34]
[1722261242893,15.68,191.8,191.67,0.34]
[1722261243090,60.68,191.79,191.67,0.34]
[1722261243293,5.2154,191.74,191.67,0.34]
[1722261243679,5.2156,191.73,191.67,0.34]
[1722261243878,5.2159,191.72,191.67,0.34]
[1722261244082,5.2156,191.74,191.67,0.34]
[1722261244279,5.215,191.76,191.68,1.0431799]
[1722261244495,20.0,191.78,191.68,1.0431799]
[1722261244795,50.17082199,191.84,191.69,0.34]
[1722261244796,34.52672199,191.84,191.69,0.34]
[1722261244975,26.16,191.84,191.69,0.34]
[1722261245178,5.2134,191.82,191.71,5.2161]
[1722261245391,41.84,191.84,191.72,0.34]
[1722261245992,5.2152,191.75,191.7,1.04291489]
[1722261246208,28.7133,191.82,191.66,15.6655]
[1722261246209,5.2154,191.74,191.66,15.6655]
[1722261246412,26.16,191.81,191.67,0.34]
[1722261246578,5.2143,191.78,191.67,1.38310147]
[1722261246776,28.7133,191.82,191.67,0.34]
[1722261246777,20.0,191.77,191.67,0.34]
[1722261246974,46.16,191.77,191.66,15.6655]
[1722261247275,45.0,191.76,191.66,15.6655]
[1722261247472,20.0,191.75,191.66,15.6655]
[1722261247689,5.2157,191.73,191.66,15.6655]
[1722261248082,5.2159,191.72,191.66,15.6655]
[1722261249280,20.0,191.75,191.66,15.6655]
[1722261249281,5.2168,191.69,191.66,15.6655]
[1722261249601,5.2168,191.69,191.65,0.7862212]
[1722261250014,15.68,191.72,191.65,0.7862212]
[1722261250183,5.2172,191.68,191.65,0.7862212]
[1722261250389,25.2173,191.67,191.65,0.7862212]
[1722261250584,5.217,191.69,191.65,0.7862212]
[1722261250788,20.0,191.68,191.65,0.7862212]
[1722261251416,20.0,191.7,191.65,0.7862212]
[1722261251587,45.0,191.69,191.65,0.7862212]
[1722261251905,5.2173,191.67,191.65,0.7862212]
[1722261252117,20.0,191.68,191.65,0.7862212]
[1722261253413,25.217,191.68,191.65,0.7862212]
[1722261253919,20.0,191.68,191.65,0.7862212]
[1722261254216,20.0,191.69,191.65,0.7862212]
[1722261254781,20.0,191.73,191.65,0.7862212]
[1722261254982,35.68,191.73,191.65,0.7862212]
[1722261255184,5.2168,191.69,191.65,0.7862212]
[1722261255390,5.217,191.68,191.65,0.7862212]
[1722261255809,5.2167,191.7,191.65,1.82971449]
[1722261256112,20.0,191.73,191.65,0.7862212]
[1722261256298,20.0,191.72,191.65,0.7862212]
[1722261256497,20.0,191.72,191.66,1.04333508]
[1722261256705,5.215,191.76,191.67,1.04330916]
[1722261256905,5.215,191.76,191.69,6.6575]
[1722261257115,13.0342,191.81,191.7,1.04309114]
[1722261257116,5.2156,191.73,191.7,1.04309114]
[1722261257319,28.7142,191.81,191.69,6.6575]
[1722261257622,5.2148,191.76,191.69,6.6575]
[1722261257780,5.2151,191.75,191.7,1.04308989]
[1722261257985,5.2151,191.75,191.69,6.6575]
[1722261259087,5.2148,191.76,191.69,7.70059094]
[1722261259318,5.2151,191.75,191.69,7.70059094]
[1722261259486,5.2151,191.75,191.69,6.6575]
[1722261260508,5.2148,191.77,191.69,6.6575]
[1722261260699,20.0,191.76,191.69,6.6575]
[1722261261007,20.0,191.76,191.71,16.3542]
[1722261261596,25.2148,191.76,191.71,16.3542]
[1722261262011,20.0,191.76,191.71,16.3542]
[1722261262213,25.2146,191.77,191.71,16.3542]
[1722261262822,5.2148,191.76,191.71,16.3542]
[1722261262992,20.0,191.77,191.71,16.3542]
[1722261263310,45.0,191.76,191.71,16.3542]
[1722261263632,5.216,191.72,191.66,15.1656]
[1722261263942,5.215,191.76,191.67,1.04322703]
[1722261264108,45.0,191.77,191.66,15.1656]
[1722261264109,20.0,191.75,191.66,15.1656]
[1722261264426,25.2152,191.75,191.66,20.383]
[1722261265409,25.2152,191.75,191.67,0.34]
[1722261266316,20.0,191.75,191.67,5.5572]
[1722261266507,20.0,191.75,191.67,0.34]
[1722261266707,20.0,191.8,191.67,0.34]
[1722261266907,5.215,191.76,191.67,5.5572]
[1722261267128,20.0,191.75,191.67,5.5572]
[1722261267326,5.2146,191.77,191.68,5.2169]
[1722261267519,20.0,191.76,191.69,0.34]
[1722261267827,25.2148,191.76,191.67,0.34]
[1722261268028,20.0,191.76,191.7,0.34]
[1722261268216,5.2153,191.75,191.66,15.1656]
[1722261268404,5.2154,191.74,191.67,0.34]
[1722261269400,20.0,191.76,191.67,0.34]
[1722261269603,5.216,191.72,191.66,15.1656]
[1722261269807,20.0,191.71,191.65,0.7862212]
[1722261270104,5.2165,191.7,191.65,0.7862212]
[1722261271414,5.2168,191.69,191.65,0.7862212]
[1722261273225,5.2175,191.66,191.65,0.7862212]
[1722261273536,26.16,191.68,191.65,0.7862212]
[1722261273709,65.0,191.67,191.65,0.7862212]
[1722261273905,5.2175,191.66,191.65,0.7862212]
[1722261274113,70.2175,191.66,191.65,0.7862212]
[1722261274639,25.2175,191.66,191.65,0.7862212]
[1722261274935,20.0,191.66,191.65,0.7862212]
[1722261275232,25.2175,191.66,191.65,0.7862212]
[1722261276011,13.0466,191.63,191.52,15.5888]
[1722261276322,65.0,191.62,191.52,15.5888]
[1722261276631,5.2192,191.6,191.52,15.5888]
[1722261277225,5.2192,191.6,191.52,16.63277687]
[1722261277613,25.2188,191.62,191.52,20.8101]
[1722261277839,25.2188,191.62,191.53,1.04397575]
[1722261278026,5.2189,191.61,191.54,1.04390585]
[1722261278336,20.0,191.6,191.52,20.8101]
[1722261278547,20.0,191.6,191.55,0.17]
[1722261278831,20.0,191.64,191.55,0.17]
[1722261279010,5.219,191.61,191.55,0.17]
[1722261279206,20.0,191.6,191.55,0.17]
[1722261279516,20.0,191.6,191.52,15.5888]
[1722261279737,5.2192,191.6,191.52,15.5888]
[1722261280142,5.2187,191.62,191.53,5.2211]
[1722261280432,5.2183,191.64,191.54,5.2207]
[1722261280639,25.2184,191.63,191.52,16.63258941]
[1722261280842,25.2184,191.63,191.53,5.5611]
[1722261281017,5.2186,191.62,191.53,0.34]
[1722261281335,5.2189,191.61,191.53,0.34]
[1722261282038,20.0,191.63,191.53,0.34]
[1722261282335,26.16,191.66,191.53,0.34]
[1722261282336,5.2189,191.61,191.53,0.34]
[1722261282513,20.0,191.65,191.53,0.34]
[1722261282713,5.2189,191.61,191.53,0.34]
[1722261283331,5.2186,191.62,191.53,5.561]
[1722261283540,5.219,191.61,191.53,0.34]
[1722261284033,5.2181,191.64,191.55,5.2205]
[1722261284221,20.0,191.63,191.56,0.34]
[1722261284624,5.2187,191.62,191.56,0.34]
[1722261284830,20.0,191.63,191.56,0.34]
[1722261285039,20.0,191.67,191.56,0.34]
[1722261285418,5.2189,191.61,191.56,0.34]
[1722261285943,5.2178,191.65,191.56,5.5602]
[1722261286128,20.0,191.64,191.57,1.04371391]
[1722261286435,41.84,191.69,191.52,15.5888]
[1722261286641,5.2195,191.59,191.52,15.5888]
[1722261286843,15.68,191.65,191.52,15.5888]
[1722261287047,5.22,191.57,191.52,15.5888]
[1722261287331,54.8861,191.63,191.52,15.5888]
[1722261287332,41.84,191.63,191.52,15.5888]
[1722261287637,45.0,191.62,191.52,15.5888]
[1722261287842,5.2197,191.58,191.52,15.5888]
[1722261288211,25.2201,191.57,191.52,15.5888]
[1722261288414,5.2204,191.56,191.52,15.5888]
[1722261289025,5.22,191.57,191.52,15.5888]
[1722261289318,5.2202,191.56,191.52,15.5888]
[1722261290010,5.22,191.57,191.52,15.5888]
[1722261290421,5.2203,191.56,191.52,15.5888]
[1722261290634,26.16,191.57,191.47,15.2699]
[1722261290850,13.0517,191.55,191.47,15.2699]
[1722261291139,65.0,191.56,191.47,15.2699]
[1722261291326,20.0,191.56,191.47,15.2699]
[1722261292126,20.0,191.58,191.47,15.2699]
[1722261292329,45.0,191.57,191.47,15.2699]
[1722261292524,20.0,191.56,191.47,15.2699]
[1722261292848,5.2211,191.54,191.48,0.34]
[1722261293027,5.2211,191.53,191.48,0.34]
[1722261293233,20.0,191.56,191.48,0.34]
[1722261293644,5.2208,191.54,191.48,0.34]
[1722261293946,25.2204,191.56,191.48,0.34]
[1722261294529,5.2206,191.55,191.48,0.34]
[1722261294750,5.2208,191.54,191.48,0.34]
[1722261295056,20.0,191.56,191.48,0.34]
[1722261295345,15.7,191.62,191.48,0.34]
[1722261295724,15.7,191.62,191.53,5.2211]
[1722261295725,5.2186,191.62,191.53,5.2211]
[1722261296033,22.3417,191.64,191.54,0.17]
[1722261296223,42.3499,191.66,191.54,0.17]
[1722261296724,42.3499,191.66,191.52,0.17]
[1722261296725,13.0476,191.61,191.52,0.17]
[1722261296929,5.2205,191.56,191.48,1.04425515]
[1722261297237,13.0476,191.61,191.47,15.2699]
[1722261297438,5.2197,191.59,191.5,5.2218]
[1722261297620,20.0,191.6,191.48,1.04402494]
[1722261297936,20.0,191.6,191.47,15.2699]
[1722261298139,48.7469,191.62,191.48,0.34]
[1722261298440,45.0,191.61,191.48,0.34]
[1722261298646,20.0,191.6,191.48,0.34]
[1722261298838,45.0,191.59,191.48,0.34]
[1722261299344,5.2203,191.56,191.48,0.34]
[1722261299527,5.2206,191.55,191.48,0.34]
[1722261299730,5.2203,191.56,191.48,0.34]
[1722261299932,5.2218,191.51,191.46,0.7862212]
[1722261300158,86.86,191.57,191.46,0.7862212]
[1722261300451,20.0,191.58,191.48,15.7824]
[1722261300749,20.0,191.58,191.49,5.2221]
[1722261300952,20.0,191.58,191.49,6.1893]
[1722261301128,15.7,191.58,191.48,15.7824]
[1722261301331,35.7,191.57,191.48,15.7824]
[1722261301547,5.2216,191.52,191.48,15.7824]
[1722261301721,5.2217,191.51,191.48,15.7824]
[1722261302324,5.222,191.5,191.48,15.7824]
[1722261302527,5.2222,191.49,191.46,0.7862212]
[1722261302748,5.2219,191.51,191.46,0.7862212]
[1722261302949,5.2224,191.49,191.46,0.7862212]
[1722261303341,5.2227,191.48,191.46,0.7862212]
[1722261303531,5.2227,191.47,191.46,0.7862212]
[1722261304230,50.2227,191.47,191.46,0.7862212]
[1722261304432,5.2227,191.47,191.46,0.7862212]
[1722261304735,5.2224,191.48,191.46,0.7862212]
[1722261305151,5.2222,191.49,191.46,0.7862212]
[1722261305339,25.2224,191.48,191.46,0.7862212]
[1722261306152,15.7,191.52,191.46,0.7862212]
[1722261306464,65.0,191.51,191.46,0.7862212]
[1722261306639,5.2219,191.5,191.46,0.7862212]
[1722261306847,20.0,191.49,191.46,0.7862212]
[1722261307151,5.2225,191.48,191.46,0.7862212]
[1722261307329,5.2227,191.47,191.46,0.7862212]
[1722261307533,5.2227,191.48,191.46,0.7862212]
[1722261308857,20.0,191.49,191.46,0.7862212]
[1722261309049,5.2216,191.52,191.46,0.7862212]
[1722261309369,20.0,191.51,191.46,0.7862212]
[1722261309540,25.2214,191.52,191.46,0.7862212]
[1722261309861,5.2209,191.54,191.46,0.7862212]
[1722261310045,5.2209,191.54,191.47,15.5641]
[1722261310240,2.1109243,191.56,191.47,16.60846294]
[1722261310440,5.2207,191.55,191.47,15.5641]
[1722261310745,5.2209,191.54,191.47,15.5641]
[1722261310946,26.16,191.57,191.47,15.5641]
[1722261311148,5.2211,191.53,191.47,15.5641]
[1722261311342,5.2207,191.55,191.48,0.34]
[1722261311961,26.16,191.6,191.48,0.34]
[1722261312164,5.2197,191.59,191.49,5.2221]
[1722261312334,5.2197,191.59,191.5,5.5618]
[1722261312543,5.2193,191.6,191.5,0.34]
[1722261312853,5.2189,191.61,191.52,5.2213]
[1722261313048,15.7,191.65,191.53,5.5611]
[1722261313235,5.2186,191.62,191.53,5.2211]
[1722261313436,5.2189,191.61,191.54,0.34]
[1722261313657,5.2194,191.6,191.51,5.2216]
[1722261313860,41.86,191.59,191.47,15.5641]
[1722261314042,5.221,191.54,191.47,15.5641]
[1722261314247,33.05,191.58,191.47,15.5641]
[1722261314441,5.2208,191.54,191.47,15.5641]
[1722261315144,48.75,191.58,191.48,0.17]
[1722261315342,5.2214,191.52,191.47,15.5641]
[1722261315656,5.2208,191.54,191.47,15.5641]
[1722261315857,5.2205,191.55,191.47,15.5641]
[1722261316246,18.31029857,191.66,191.48,26.16]
[1722261316547,26.0763,191.75,191.48,26.16]
[1722261316548,31.375,191.72,191.58,6.359]
[1722261316750,31.375,191.72,191.59,1.21370733]
[1722261316963,5.2167,191.69,191.6,0.17]
[1722261317166,5.215,191.72,191.6,5.389]
[1722261317458,20.915,191.73,191.61,0.17]
[1722261317859,5.215,191.72,191.62,5.2185]
[1722261318034,5.215,191.72,191.63,0.34]
[1722261318234,5.215,191.72,191.61,0.17]
[1722261318438,5.2164,191.7,191.61,5.3888]
[1722261318644,5.215,191.72,191.62,0.17]
[1722261318865,5.215,191.72,191.61,0.17]
[1722261318866,5.215,191.74,191.61,0.17]
[1722261319067,5.2172,191.68,191.6,0.17]
[1722261319239,5.2172,191.68,191.58,6.359]
[1722261319240,5.2172,191.68,191.59,0.34]
[1722261319441,5.2174,191.67,191.59,0.34]
[1722261319643,5.2168,191.69,191.59,5.5594]
[1722261319864,20.0,191.68,191.59,5.5594]
[1722261320049,5.215,191.72,191.59,0.34]
[1722261320262,25.2162,191.71,191.59,45.34]
[1722261320475,5.215,191.72,191.6,1.04345535]
[1722261320674,5.215,191.72,191.61,16.9943095]
[1722261320964,5.215,191.74,191.65,5.2177]
[1722261321174,5.215,191.74,191.67,6.5726]
[1722261322164,5.215,191.72,191.62,6.5829]
[1722261322664,5.215,191.72,191.63,5.2182]
[1722261323047,5.215,191.72,191.64,5.218]
[1722261323251,5.215,191.72,191.62,6.5829]
[1722261323563,5.215,191.72,191.63,45.34]
[1722261324068,5.215,191.72,191.67,5.2171]
[1722261324250,10.4294,191.78,191.68,5.2169]
[1722261324445,5.215,191.76,191.68,5.2169]
[1722261324648,5.215,191.76,191.69,1.04316962]
[1722261324852,6.1654,191.88,191.7,0.34]
[1722261325058,6.1654,191.88,191.71,1.0429112]
[1722261325267,6.1654,191.88,191.72,0.17]
[1722261325441,6.1654,191.88,191.73,5.2154]
[1722261325643,5.2127,191.84,191.74,5.3853]
[1722261325866,5.2123,191.86,191.75,0.17]
[1722261326043,15.8799,191.89,191.77,15.8051]
[1722261326445,5.2125,191.85,191.77,15.8051]
[1722261326652,15.8799,191.89,191.77,15.8051]
[1722261326863,5.2129,191.83,191.77,15.8051]
[1722261327560,5.2111,191.9,191.79,5.2139]
[1722261327968,6.3422,191.92,191.78,6.19]
[1722261328154,5.2119,191.87,191.78,6.19]
[1722261328351,51.5122,191.92,191.78,6.19]
[1722261328542,51.5122,191.92,191.77,15.8051]
[1722261328543,29.47,191.88,191.77,15.8051]
[1722261328742,5.2135,191.81,191.74,6.615]
[1722261328947,45.0,191.8,191.74,6.615]
[1722261329158,5.2129,191.83,191.74,6.615]
[1722261329366,20.0,191.82,191.74,11.8303]
[1722261329566,20.0,191.82,191.75,5.215]
[1722261329772,20.0,191.86,191.75,5.2149]
[1722261330069,45.0,191.85,191.75,5.2149]
[1722261330266,20.0,191.84,191.76,5.2148]
[1722261330474,45.0,191.83,191.76,5.2148]
[1722261330676,45.0,191.83,191.74,6.955]
[1722261330848,45.0,191.83,191.75,0.34]
[1722261331050,45.0,191.83,191.74,6.615]
[1722261331446,45.0,191.83,191.72,16.0351]
[1722261331447,29.47,191.81,191.72,16.0351]
[1722261331663,29.47,191.81,191.7,6.1338]
[1722261331664,15.7,191.74,191.52,21.6852]
[1722261331974,31.39,191.78,191.52,21.6852]
[1722261331975,13.0433,191.67,191.52,21.6852]
[1722261332175,20.0,191.66,191.56,5.2202]
[1722261332355,20.0,191.66,191.52,21.6852]
[1722261332675,20.0,191.66,191.53,1.04378103]
[1722261332860,45.0,191.65,191.56,5.2202]
[1722261333065,5.2168,191.69,191.59,5.2194]
[1722261333383,5.2168,191.69,191.52,22.72898103]
[1722261333384,70.217,191.68,191.58,5.2196]
[1722261333554,65.0,191.68,191.59,5.2194]
[1722261333857,65.0,191.68,191.52,22.72898103]
[1722261334062,70.217,191.68,191.58,5.2195]
[1722261334761,70.217,191.68,191.52,22.72898103]
[1722261334762,70.217,191.68,191.59,5.2194]
[1722261335078,5.2173,191.67,191.58,0.17]
[1722261335278,45.0,191.66,191.58,0.17]
[1722261335980,90.17,191.67,191.52,21.6852]
[1722261336173,0.34,191.66,191.52,15.5514]
[1722261336479,5.2189,191.62,191.52,15.5514]
[1722261336670,65.0,191.61,191.53,5.2208]
[1722261336868,29.47,191.67,191.52,15.5514]
[1722261337058,5.2176,191.66,191.57,5.2199]
[1722261337256,15.7,191.69,191.52,15.5514]
[1722261337257,35.7,191.65,191.52,15.5514]
[1722261337456,35.7,191.65,191.54,5.2208]
[1722261337457,5.2184,191.63,191.54,5.2208]
[1722261337763,20.0,191.62,191.52,15.5514]
[1722261337963,5.2195,191.59,191.52,15.5514]
[1722261338274,35.7,191.65,191.52,15.5514]
[1722261338477,5.22,191.57,191.46,23.3635212]
[1722261339059,5.22,191.57,191.48,5.2223]
[1722261339382,5.2196,191.59,191.49,5.2221]
[1722261339567,70.2197,191.58,191.49,5.2221]
[1722261339983,65.0,191.58,191.46,23.3635212]
[1722261340680,65.0,191.58,191.47,1.04428631]
[1722261340871,65.0,191.58,191.51,5.2216]
[1722261341072,20.0,191.58,191.51,5.2216]
[1722261341382,20.0,191.59,191.51,5.2216]
[1722261341579,25.2194,191.59,191.46,23.3635212]
[1722261341753,25.2194,191.59,191.49,5.2219]
[1722261341754,5.2197,191.58,191.49,5.2219]
[1722261341958,5.2207,191.55,191.46,28.5865212]
[1722261342572,5.2209,191.54,191.46,17.3412212]
[1722261342776,20.0,191.53,191.46,0.7862212]
[1722261342982,5.2213,191.52,191.46,0.7862212]
[1722261343480,20.0,191.53,191.46,0.7862212]
[1722261343672,5.2208,191.55,191.46,0.7862212]
[1722261343864,70.2208,191.54,191.46,0.7862212]
[1722261344065,50.2208,191.54,191.46,0.7862212]
[1722261344264,20.0,191.53,191.46,0.7862212]
[1722261344467,25.2211,191.53,191.46,0.7862212]
[1722261344893,20.0,191.53,191.47,0.17]
[1722261345062,20.0,191.57,191.47,0.17]
[1722261345263,5.2208,191.54,191.47,0.17]
[1722261345566,20.0,191.53,191.47,0.17]
[1722261345983,5.2216,191.51,191.46,0.7862212]
[1722261346694,20.0,191.55,191.46,0.7862212]
[1722261346984,45.0,191.54,191.46,0.7862212]
[1722261347186,25.2211,191.53,191.46,0.7862212]
[1722261347394,20.0,191.53,191.46,0.7862212]
[1722261347569,15.7,191.58,191.46,0.7862212]
[1722261347776,65.0,191.57,191.47,0.17]
[1722261348096,5.2208,191.54,191.47,0.17]
[1722261348491,65.0,191.57,191.46,0.7862212]
[1722261348894,5.2211,191.54,191.47,0.17]
[1722261349217,5.2214,191.52,191.46,0.7862212]
[1722261349579,65.0,191.57,191.46,0.7862212]
[1722261349779,5.2211,191.53,191.47,0.17]
[1722261351802,65.0,191.57,191.47,0.17]
[1722261352002,65.0,191.57,191.47,0.34]
[1722261352208,65.0,191.57,191.47,5.5627]
[1722261352209,5.2203,191.56,191.47,5.5627]
[1722261352507,5.2197,191.58,191.48,16.11045335]
[1722261352687,5.22,191.57,191.49,6.60633962]
[1722261352887,15.7,191.63,191.48,15.0663]
[1722261352888,15.7,191.6,191.48,15.0663]
[1722261353097,5.2227,191.47,191.46,0.7862212]
[1722261353484,18.2795,191.47,191.46,0.7862212]
[1722261353685,25.2227,191.47,191.46,0.7862212]
[1722261353888,70.2227,191.47,191.46,0.7862212]
[1722261355715,25.2227,191.47,191.46,0.7862212]
[1722261357377,70.2227,191.47,191.46,0.7862212]
[1722261360487,85.9227,191.47,191.46,0.7862212]
[1722261362201,70.2227,191.47,191.46,0.7862212]
[1722261363483,85.9227,191.47,191.46,0.7862212]
[1722261365413,70.2227,191.47,191.46,0.7862212]
[1722261365801,20.0,191.47,191.46,0.7862212]
[1722261366403,5.234,191.51,191.46,0.7862212]
[1722261366605,5.2217,191.51,191.46,0.7862212]
[1722261367112,5.2222,191.49,191.46,0.7862212]
[1722261367295,5.2226,191.48,191.46,0.7862212]
[1722261367505,5.2227,191.47,191.46,0.7862212]
[1722261368006,50.2227,191.47,191.46,0.7862212]
[1722261368309,65.0,191.47,191.46,0.7862212]
[1722261368516,70.2227,191.47,191.46,0.7862212]
[1722261370113,65.0,191.47,191.46,0.7862212]
[1722261370317,45.0,191.47,191.46,0.7862212]
[1722261370614,50.2227,191.47,191.46,0.7862212]
[1722261371298,45.0,191.47,191.46,0.7862212]
[1722261371792,15.7,191.5,191.46,0.7862212]
[1722261371997,65.0,191.49,191.46,0.7862212]
[1722261373014,45.0,191.49,191.46,0.7862212]
[1722261373198,45.0,191.5,191.46,0.7862212]
[1722261373713,50.2219,191.5,191.46,0.7862212]
[1722261374122,5.2222,191.49,191.46,0.7862212]
[1722261374307,45.0,191.48,191.46,0.7862212]
[1722261374813,5.2227,191.47,191.46,0.7862212]
[1722261375013,50.2227,191.47,191.46,0.7862212]
[1722261376105,45.0,191.47,191.46,0.7862212]
[1722261376308,50.2227,191.47,191.46,0.7862212]
[1722261376508,45.0,191.47,191.46,0.7862212]
[1722261376705,31.4719,191.5,191.46,0.7862212]
[1722261376915,65.0,191.49,191.46,0.7862212]
[1722261377110,70.2223,191.49,191.46,0.7862212]
[1722261377310,80.7,191.49,191.46,0.7862212]
[1722261377622,65.0,191.49,191.46,0.7862212]
[1722261380405,5.2214,191.52,191.46,0.7862212]
[1722261380608,5.2209,191.54,191.46,0.7862212]
[1722261381424,5.2212,191.53,191.46,0.7862212]
[1722261381626,41.95,191.56,191.46,0.7862212]
[1722261381946,5.2209,191.54,191.46,6.0091212]
[1722261382232,20.0,191.53,191.46,6.0091212]
[1722261382440,20.0,191.53,191.47,5.2227]
[1722261382923,20.0,191.55,191.48,5.2224]
[1722261383326,20.0,191.55,191.47,11.3501]
[1722261383627,25.2206,191.55,191.47,6.1274]
[1722261383827,45.0,191.54,191.47,6.1274]
[1722261384529,20.0,191.53,191.47,6.1274]
[1722261384830,50.2214,191.52,191.47,6.1274]
[1722261385008,50.2214,191.52,191.46,0.7862212]
[1722261385541,45.0,191.52,191.46,0.7862212]
[1722261385842,50.2214,191.52,191.46,0.7862212]
[1722261386339,25.2219,191.51,191.46,0.7862212]
[1722261386633,50.222,191.5,191.46,0.7862212]
[1722261386809,25.2222,191.49,191.46,0.7862212]
[1722261387017,45.0,191.48,191.46,0.7862212]
[1722261388405,5.2219,191.5,191.46,0.7862212]
[1722261388406,45.0,191.49,191.46,0.7862212]
[1722261388615,50.2222,191.49,191.46,0.7862212]
[1722261389021,5.2225,191.48,191.46,0.7862212]
[1722261389224,45.0,191.47,191.46,0.7862212]
[1722261389616,50.2227,191.47,191.46,0.7862212]
[1722261390012,26.25,191.5,191.46,0.7862212]
[1722261390247,65.0,191.49,191.46,0.7862212]
[1722261390537,45.0,191.49,191.46,0.7862212]
[1722261391810,26.25,191.5,191.46,0.7862212]
[1722261392810,26.25,191.53,191.46,0.7862212]
[1722261393008,20.0,191.52,191.46,0.7862212]
[1722261393408,31.4711,191.53,191.46,0.7862212]
[1722261393611,26.25,191.53,191.46,6.0091212]
[1722261393832,5.234,191.55,191.47,5.2227]
[1722261394123,5.234,191.55,191.48,5.2224]
[1722261394320,5.234,191.55,191.48,22.4175]
[1722261394537,26.25,191.57,191.49,5.2221]
[1722261394912,26.25,191.57,191.48,22.4175]
[1722261394913,31.47,191.57,191.48,22.4175]
[1722261395718,65.0,191.56,191.48,22.4175]
[1722261396839,26.25,191.54,191.48,16.236]
[1722261397039,45.0,191.53,191.48,16.236]
[1722261397426,50.2212,191.53,191.48,16.236]
[1722261397818,45.0,191.53,191.48,16.236]
[1722261399314,20.0,191.52,191.48,16.236]
[1722261399522,45.0,191.51,191.46,0.7862212]
[1722261403324,45.0,191.52,191.46,0.7862212]
[1722261403660,45.0,191.53,191.46,0.7862212]
[1722261404161,50.2211,191.53,191.46,0.7862212]
[1722261404339,5.2214,191.52,191.46,0.7862212]
[1722261404652,45.0,191.51,191.46,0.7862212]
[1722261404853,5.2213,191.52,191.46,0.7862212]
[1722261405069,50.2216,191.51,191.46,0.7862212]
[1722261405361,65.0,191.5,191.46,0.7862212]
[1722261405855,70.222,191.5,191.46,0.7862212]
[1722261406223,50.222,191.5,191.46,0.7862212]
[1722261406649,50.222,191.5,191.35,20.70335711]
[1722261406650,15.7,191.45,191.35,20.70335711]
[1722261406963,26.25,191.4,191.35,15.2564]
[1722261407267,20.0,191.39,191.32,2.35647994]
[1722261407473,5.2252,191.38,191.32,2.35647994]
[1722261407667,5.2254,191.37,191.32,2.35647994]
[1722261407846,5.2252,191.38,191.32,2.35647994]